bitfinex/quotes_SOLUSD_20250831
["timestamp","ask_amount","ask_price","bid_price","bid_amount"]
[1756647376761,57.24846309,202.37,202.23,26.0]
[1756647376963,14.859945,202.36,202.26,13.59559401]
[1756647377175,14.859945,202.36,202.21,4.94535384]
[1756647377176,0.69,202.36,202.21,4.94535384]
[1756647377360,18.08846309,202.37,202.21,4.94535384]
[1756647377671,26.0,202.34,202.24,26.0]
[1756647377980,18.08846309,202.37,202.25,0.72]
[1756647378156,23.02993936,202.37,202.28,26.0]
[1756647378472,26.0,202.34,202.25,0.72]
[1756647378666,18.08846309,202.37,202.25,0.72]
[1756647379370,18.08846309,202.37,202.29,26.0]
[1756647379562,18.08846309,202.37,202.3,0.72]
[1756647380083,18.08846309,202.37,202.33,26.0]
[1756647380375,0.69,202.36,202.26,0.72]
[1756647380691,26.0,202.35,202.26,0.72]
[1756647380883,26.69,202.34,202.23,14.859945]
[1756647381066,26.0,202.3,202.16,40.0]
[1756647381257,26.0,202.3,202.23,0.72]
[1756647382571,0.69,202.31,202.23,5.66485121]
[1756647382769,0.69,202.34,202.24,0.72]
[1756647383491,4.94242079,202.33,202.24,0.72]
[1756647383870,0.69,202.32,202.24,0.72]
[1756647384259,0.69,202.32,202.24,5.66460679]
[1756647384566,0.69,202.32,202.25,0.72]
[1756647385071,0.69,202.32,202.22,0.72]
[1756647385454,5.63290119,202.32,202.22,0.72]
[1756647385677,5.63290119,202.32,202.2,0.72]
[1756647386368,20.49726319,202.32,202.2,0.72]
[1756647386568,32.8539259,202.32,202.2,0.72]
[1756647387273,13.59559401,202.31,202.17,26.0]
[1756647387471,13.59559401,202.29,202.15,17.44559679]
[1756647387774,40.89,202.3,202.14,0.72]
[1756647387775,39.59559401,202.27,202.14,0.72]
[1756647388277,26.0,202.23,202.14,0.72]
[1756647388685,26.0,202.23,202.11,5.66778706]
[1756647388686,5.63510928,202.22,202.11,5.66778706]
[1756647388996,14.870257,202.22,202.12,0.72]
[1756647389162,30.94437577,202.25,202.12,0.72]
[1756647389373,43.3053152,202.25,202.12,0.72]
[1756647389669,26.0,202.24,202.12,0.72]
[1756647389885,40.32,202.27,202.13,13.59559401]
[1756647390072,40.32,202.27,202.14,0.72]
[1756647390275,13.59559401,202.32,202.15,13.59559401]
[1756647390276,4.94266508,202.32,202.15,13.59559401]
[1756647391266,0.75,202.32,202.19,0.72]
[1756647391457,0.75,202.32,202.19,15.58289]
[1756647391656,0.75,202.32,202.2,14.31559401]
[1756647392061,0.06,202.32,202.25,26.0]
[1756647392261,0.06,202.32,202.27,13.59559401]
[1756647392465,0.06,202.32,202.26,0.67]
[1756647392661,0.06,202.32,202.24,0.67]
[1756647393268,0.06,202.32,202.25,13.59559401]
[1756647393463,0.06,202.32,202.26,0.67]
[1756647394797,0.06,202.32,202.27,4.94388688]
[1756647394974,0.06,202.32,202.28,0.67]
[1756647395571,0.06,202.32,202.29,13.59559401]
[1756647395969,0.06,202.32,202.3,0.67]
[1756647396664,0.06,202.32,202.31,13.59559401]
[1756647397002,1e-08,202.32,202.31,18.5385034]
[1756647397184,1e-08,202.32,202.31,19.2085034]
[1756647397395,1e-08,202.32,202.31,45.2085034]
[1756647397581,1e-08,202.32,202.31,59.6485034]
[1756647398778,1e-08,202.32,202.31,181.6485034]
[1756647399366,1e-08,202.32,202.31,127.61290939]
[1756647399566,1e-08,202.32,202.31,0.67]
[1756647400078,1e-08,202.32,202.3,4.94314407]
[1756647400577,1e-08,202.32,202.3,5.61314407]
[1756647403995,1e-08,202.32,202.3,4.94314407]
[1756647404188,1e-08,202.32,202.31,5.61290939]
[1756647404780,1e-08,202.32,202.28,0.67]
[1756647405388,1e-08,202.32,202.29,0.67]
[1756647405989,1e-08,202.32,202.3,45.97307234]
[1756647406398,1e-08,202.32,202.31,0.67]
[1756647406907,1e-08,202.32,202.31,14.26559401]
[1756647407905,1e-08,202.32,202.31,19.2085034]
[1756647409078,1e-08,202.32,202.31,5.61290939]
[1756647409280,1e-08,202.32,202.27,122.0]
[1756647409281,1e-08,202.32,202.3,4.94315258]
[1756647409495,1e-08,202.32,202.31,40.32]
[1756647409698,1e-08,202.32,202.31,40.34]
[1756647409897,1e-08,202.32,202.31,45.28290939]
[1756647410201,1e-08,202.32,202.31,45.95290939]
[1756647410502,1e-08,202.32,202.31,59.5485034]
[1756647411607,1e-08,202.32,202.31,19.2085034]
[1756647411800,1e-08,202.32,202.31,45.93290939]
[1756647412204,1e-08,202.32,202.29,0.67]
[1756647412400,1e-08,202.32,202.29,127.61339809]
[1756647412710,1e-08,202.32,202.3,40.99]
[1756647413203,1e-08,202.32,202.31,14.26559401]
[1756647414092,1e-08,202.32,202.31,19.2085034]
[1756647415507,1e-08,202.32,202.31,141.2085034]
[1756647417104,1e-08,202.32,202.31,45.20290939]
[1756647417301,1e-08,202.32,202.31,71.20290939]
[1756647417905,1e-08,202.32,202.31,71.87290939]
[1756647418201,1e-08,202.32,202.29,0.67]
[1756647418398,1e-08,202.32,202.3,40.24]
[1756647418710,1e-08,202.32,202.3,45.85315373]
[1756647419612,1e-08,202.32,202.31,40.24]
[1756647419918,1e-08,202.32,202.3,4.94315373]
[1756647420112,1e-08,202.32,202.31,40.22]
[1756647420299,1e-08,202.32,202.31,4.94290939]
[1756647420497,1e-08,202.32,202.31,45.16290939]
[1756647420710,1e-08,202.32,202.31,45.83290939]
[1756647421098,1e-08,202.32,202.31,59.4285034]
[1756647423804,1e-08,202.32,202.31,39.2085034]
[1756647424120,0.7,202.41,202.35,26.0]
[1756647424301,0.7,202.41,202.37,4.94144388]
[1756647424508,0.7,202.4,202.38,40.3]
[1756647424806,0.7,202.39,202.34,4.94217653]
[1756647424992,0.7,202.38,202.35,40.28]
[1756647425194,0.7,202.37,202.35,40.28]
[1756647425399,0.7,202.36,202.35,40.28]
[1756647425800,17.28824659,202.45,202.35,40.3]
[1756647426022,0.7,202.38,202.35,40.3]
[1756647426323,0.7,202.37,202.35,40.3]
[1756647426502,0.7,202.37,202.35,45.24185338]
[1756647427121,0.7,202.37,202.35,40.3]
[1756647427523,0.7,202.37,202.34,4.9421309]
[1756647427704,0.7,202.36,202.31,4.94290939]
[1756647427901,0.7,202.35,202.32,40.26]
[1756647428107,0.7,202.34,202.31,4.94290939]
[1756647428307,0.7,202.34,202.33,40.26]
[1756647429214,0.76,202.36,202.33,40.26]
[1756647429419,0.06,202.36,202.34,0.69]
[1756647429615,0.06,202.36,202.35,40.24]
[1756647430325,0.06,202.36,202.35,45.18193229]
[1756647431503,0.06,202.36,202.35,45.87193229]
[1756647431704,0.06,202.36,202.35,45.18193229]
[1756647432710,0.06,202.36,202.35,40.24]
[1756647433607,0.06,202.36,202.35,45.18193229]
[1756647433809,0.06,202.36,202.32,18.53825909]
[1756647434121,0.06,202.36,202.33,40.14]
[1756647434320,0.06,202.36,202.33,40.83]
[1756647434524,0.06,202.36,202.34,5.63217653]
[1756647434716,0.06,202.36,202.35,40.14]
[1756647435106,0.76,202.36,202.35,40.14]
[1756647435436,0.76,202.36,202.33,4.94240375]
[1756647435639,0.76,202.36,202.35,40.12]
[1756647436133,0.06,202.36,202.35,40.12]
[1756647436351,0.06,202.36,202.35,40.1]
[1756647437313,0.06,202.36,202.35,40.08]
[1756647438519,0.06,202.36,202.35,40.77]
[1756647439047,0.06,202.36,202.35,54.36559401]
[1756647439339,0.06,202.36,202.35,59.3075263]
[1756647440524,0.06,202.36,202.35,45.71193229]
[1756647441129,0.06,202.36,202.35,45.02193229]
[1756647441326,0.06,202.36,202.35,40.08]
[1756647441527,0.76,202.36,202.31,26.03]
[1756647441731,0.76,202.36,202.32,40.06]
[1756647442544,0.7,202.35,202.33,40.04]
[1756647443022,0.06,202.36,202.33,40.04]
[1756647443720,0.06,202.36,202.34,0.69]
[1756647444027,0.06,202.36,202.35,40.02]
[1756647444224,0.06,202.36,202.35,40.71]
[1756647444742,0.7,202.43,202.35,40.71]
[1756647445045,12.34705811,202.48,202.35,40.02]
[1756647445046,0.7,202.42,202.35,40.02]
[1756647445641,0.7,202.42,202.36,4.94168808]
[1756647445843,0.7,202.42,202.37,40.0]
[1756647446042,0.7,202.41,202.37,40.0]
[1756647446560,0.7,202.44,202.37,40.69]
[1756647446721,27.27215371,202.52,202.38,0.69]
[1756647446722,0.7,202.46,202.38,0.69]
[1756647446923,3.99037951,202.46,202.38,0.69]
[1756647447745,0.7,202.46,202.38,0.69]
[1756647447961,0.7,202.46,202.39,4.94095558]
[1756647448167,0.7,202.46,202.4,39.98]
[1756647448342,0.7,202.48,202.41,0.69]
[1756647449441,0.7,202.48,202.39,4.94095558]
[1756647449639,0.7,202.47,202.4,39.98]
[1756647449841,4.93949123,202.45,202.4,39.98]
[1756647450062,0.7,202.44,202.4,39.98]
[1756647450270,0.7,202.43,202.4,39.98]
[1756647450442,4.93928323,202.46,202.4,39.98]
[1756647450644,0.7,202.45,202.4,39.98]
[1756647451149,0.7,202.45,202.4,39.96]
[1756647451663,0.7,202.44,202.36,39.96]
[1756647451973,0.67,202.43,202.36,39.96]
[1756647452345,5.61011978,202.43,202.36,39.96]
[1756647453151,0.67,202.43,202.37,0.66]
[1756647453350,5.60972213,202.45,202.37,0.66]
[1756647454095,5.60972213,202.45,202.37,5.60122586]
[1756647454378,4.93954078,202.45,202.37,5.60122586]
[1756647454583,0.67,202.44,202.37,5.60122586]
[1756647455767,0.67,202.44,202.39,4.94095558]
[1756647455960,5.60925737,202.46,202.4,0.66]
[1756647456161,5.60925737,202.46,202.39,4.94095558]
[1756647456560,0.67,202.49,202.4,0.66]
[1756647456770,0.67,202.49,202.4,40.58]
[1756647456977,0.67,202.49,202.41,0.66]
[1756647457968,4.93875938,202.48,202.41,0.66]
[1756647458173,0.67,202.47,202.41,0.66]
[1756647458691,0.67,202.47,202.41,5.6003078]
[1756647461372,0.17,202.47,202.41,5.6003078]
[1756647462170,3.28852429,202.52,202.42,26.66]
[1756647462374,0.2,202.53,202.43,0.66]
[1756647462582,4.93782471,202.52,202.43,0.66]
[1756647462881,3.28679654,202.51,202.43,0.66]
[1756647463598,3.71679654,202.51,202.43,0.66]
[1756647463794,0.43,202.5,202.41,0.66]
[1756647463979,0.43,202.49,202.41,0.66]
[1756647464382,4.93875938,202.48,202.41,0.66]
[1756647464775,0.43,202.47,202.38,5.59876]
[1756647464983,0.43,202.47,202.38,0.66]
[1756647464984,0.43,202.46,202.38,0.66]
[1756647466202,4.93949123,202.45,202.38,0.66]
[1756647467792,0.43,202.44,202.36,0.66]
[1756647468480,4.93997925,202.43,202.36,0.66]
[1756647470391,26.43,202.47,202.36,5.60166862]
[1756647470598,8.22525334,202.46,202.37,0.66]
[1756647470908,4.93924725,202.46,202.37,0.66]
[1756647471816,5.36924725,202.46,202.37,0.66]
[1756647472706,4.93892836,202.48,202.37,5.60138457]
[1756647472883,4.93892836,202.48,202.38,0.66]
[1756647473301,4.43892836,202.48,202.38,0.66]
[1756647473812,4.43892836,202.48,202.39,4.94095558]
[1756647473986,0.43,202.49,202.4,0.66]
[1756647474187,8.65536875,202.49,202.4,0.66]
[1756647474407,3.28670436,202.48,202.4,0.66]
[1756647475510,0.43,202.47,202.4,0.66]
[1756647475829,0.43,202.46,202.39,0.66]
[1756647477817,4.93949123,202.45,202.39,0.66]
[1756647477979,0.43,202.44,202.35,4.968889]
[1756647478186,0.43,202.44,202.36,0.66]
[1756647478787,38.34674517,202.49,202.36,5.60163807]
[1756647478788,0.43,202.46,202.36,5.60163807]
[1756647478982,31.36851817,202.49,202.37,0.66]
[1756647479218,3.7185478,202.48,202.37,0.66]
[1756647479786,3.7185478,202.48,202.38,4.94119972]
[1756647479787,4.9390033,202.47,202.38,4.94119972]
[1756647480009,4.9390033,202.47,202.39,0.66]
[1756647480310,5.3690033,202.47,202.39,0.66]
[1756647480492,0.43,202.46,202.37,0.66]
[1756647480688,0.43,202.45,202.37,0.66]
[1756647480897,0.43,202.44,202.37,5.60144114]
[1756647481093,3.28968797,202.46,202.37,4.94144114]
[1756647481415,3.71968797,202.46,202.38,0.66]
[1756647481915,0.43,202.46,202.38,0.66]
[1756647482107,5.36945354,202.46,202.38,5.6009632]
[1756647482304,5.36945354,202.46,202.39,0.65]
[1756647482496,0.43,202.45,202.37,5.59143118]
[1756647482889,0.43,202.44,202.35,0.68]
[1756647483093,0.43,202.43,202.35,0.68]
[1756647483301,0.43,202.42,202.35,0.68]
[1756647484121,4.94046736,202.41,202.35,0.68]
[1756647485411,5.37026463,202.42,202.35,0.68]
[1756647489139,4.94071146,202.4,202.35,0.68]
[1756647490924,0.43,202.41,202.35,0.68]
[1756647491509,5.37052458,202.41,202.35,5.62189743]
[1756647491709,5.37052458,202.41,202.35,0.68]
[1756647492597,5.37052458,202.41,202.35,5.62192364]
[1756647492895,5.37052458,202.41,202.35,0.68]
[1756647493318,0.43,202.44,202.35,5.62185652]
[1756647493506,0.43,202.44,202.36,0.65]
[1756647493707,0.06,202.45,202.36,0.65]
[1756647494201,0.06,202.45,202.37,3.69939267]
[1756647494401,0.06,202.45,202.38,4.34939267]
[1756647494612,0.06,202.45,202.39,3.69939267]
[1756647494817,0.06,202.45,202.4,3.69939267]
[1756647495013,0.06,202.45,202.41,3.69939267]
[1756647495219,0.06,202.45,202.42,3.69939267]
[1756647495413,0.06,202.45,202.43,3.69939267]
[1756647495610,0.06,202.45,202.44,3.69939267]
[1756647496123,0.06,202.45,202.44,4.34939267]
[1756647496323,0.06,202.45,202.44,0.65]
[1756647496632,0.06,202.45,202.42,0.65]
[1756647496829,0.06,202.45,202.43,0.65]
[1756647498027,0.06,202.45,202.44,0.65]
[1756647499512,0.06,202.45,202.41,0.65]
[1756647500528,0.06,202.45,202.42,0.65]
[1756647501423,0.06,202.45,202.42,5.59021633]
[1756647501629,0.06,202.45,202.43,0.65]
[1756647502017,0.06,202.45,202.44,0.65]
[1756647506109,0.00944654,202.45,202.44,0.65]
[1756647506511,0.00944654,202.45,202.44,5.58973523]
[1756647508810,0.00944654,202.45,202.44,0.65]
[1756647509036,0.00944654,202.45,202.4,0.65]
[1756647509238,0.43944654,202.45,202.4,0.65]
[1756647509434,0.00944654,202.45,202.4,0.65]
[1756647509822,0.00944654,202.45,202.41,0.65]
[1756647510238,0.00944654,202.45,202.42,0.65]
[1756647510427,0.00944654,202.45,202.43,0.65]
[1756647510623,0.00944654,202.45,202.38,13.62559401]
[1756647510927,0.00944654,202.45,202.39,0.65]
[1756647511919,0.43944654,202.45,202.39,0.65]
[1756647512444,4.93973523,202.44,202.39,0.65]
[1756647512744,4.93973523,202.44,202.4,0.72]
[1756647514738,5.36973523,202.44,202.38,0.03]
[1756647514938,5.36973523,202.44,202.38,0.75]
[1756647515329,0.43,202.43,202.38,0.03]
[1756647515929,4.94022329,202.42,202.38,0.03]
[1756647516121,0.43,202.41,202.38,0.03]
[1756647517333,17.29078153,202.42,202.38,0.03]
[1756647517334,5.37071146,202.4,202.38,0.03]
[1756647518247,0.43,202.39,202.38,0.03]
[1756647519031,4.94071146,202.4,202.38,0.03]
[1756647519436,0.43,202.4,202.38,0.03]
[1756647519833,26.43,202.39,202.38,0.03]
[1756647520032,29.71981526,202.39,202.38,0.03]
[1756647520647,26.0,202.38,202.35,0.03]
[1756647521037,0.43,202.37,202.35,0.03]
[1756647521346,26.0,202.38,202.35,0.03]
[1756647521524,4.94144388,202.37,202.35,0.03]
[1756647522528,31.37144388,202.37,202.35,0.03]
[1756647523232,0.43,202.36,202.35,0.03]
[1756647523424,9.2965383,202.36,202.35,0.03]
[1756647523630,5.37168808,202.36,202.35,0.03]
[1756647523840,44.67168808,202.36,202.35,0.03]
[1756647525326,48.70271646,202.36,202.35,0.03]
[1756647526546,48.70271646,202.36,202.35,1e-08]
[1756647527628,51.98161547,202.36,202.35,1e-08]
[1756647528532,48.70271646,202.36,202.35,1e-08]
[1756647528954,62.29831047,202.36,202.35,1e-08]
[1756647529137,65.5755689,202.36,202.35,1e-08]
[1756647529458,62.29831047,202.36,202.35,1e-08]
[1756647529658,26.0,202.33,202.31,0.03]
[1756647529843,39.24,202.32,202.25,0.72]
[1756647530045,39.67,202.32,202.25,0.72]
[1756647530840,4.94364247,202.28,202.25,0.72]
[1756647531155,44.18364247,202.28,202.17,4.94613523]
[1756647531355,44.18364247,202.28,202.18,0.72]
[1756647532150,4.94242079,202.33,202.19,13.59559401]
[1756647532453,4.94242079,202.33,202.2,0.72]
[1756647533752,4.94242079,202.33,202.2,122.72]
[1756647533954,4.94242079,202.33,202.21,0.72]
[1756647534358,4.94242079,202.33,202.22,4.94510928]
[1756647534530,4.94242079,202.33,202.23,0.72]
[1756647535755,4.94242079,202.33,202.23,5.66471444]
[1756647535961,4.94242079,202.33,202.24,0.72]
[1756647536556,4.94242079,202.33,202.24,5.66455696]
[1756647536738,4.94242079,202.33,202.25,0.72]
[1756647539943,5.37242079,202.33,202.25,0.72]
[1756647540337,4.94217079,202.35,202.25,5.66427327]
[1756647540560,39.26,202.34,202.26,0.72]
[1756647540861,4.94242079,202.33,202.26,0.72]
[1756647541558,0.43,202.32,202.25,0.72]
[1756647542337,0.43,202.31,202.25,0.72]
[1756647542540,0.43,202.3,202.23,0.68]
[1756647542966,4.94339809,202.29,202.23,0.68]
[1756647543555,4.94339809,202.29,202.25,0.03]
[1756647543744,5.37339809,202.29,202.25,0.03]
[1756647544463,4.94313534,202.31,202.26,0.68]
[1756647544671,4.94313534,202.31,202.27,0.68]
[1756647545742,4.94313534,202.31,202.25,0.03]
[1756647545942,39.22,202.33,202.26,0.68]
[1756647547074,44.16263268,202.33,202.26,5.62412452]
[1756647547366,44.16263268,202.33,202.27,0.68]
[1756647547962,4.94263268,202.33,202.27,0.68]
[1756647549678,0.06,202.36,202.27,5.62382355]
[1756647549878,0.06,202.36,202.28,0.68]
[1756647549879,39.26,202.36,202.28,0.68]
[1756647550083,0.06,202.36,202.28,0.68]
[1756647550567,5.00190276,202.36,202.28,0.68]
[1756647550768,0.06,202.36,202.28,0.68]
[1756647551775,0.06,202.36,202.29,4.94339809]
[1756647552079,0.06,202.36,202.28,0.68]
[1756647552080,0.43,202.35,202.28,0.68]
[1756647552381,0.43,202.34,202.28,0.68]
[1756647552562,0.49,202.36,202.28,0.68]
[1756647552758,0.43,202.35,202.25,0.03]
[1756647552964,0.43,202.35,202.26,0.68]
[1756647553158,0.43,202.34,202.26,0.68]
[1756647553660,0.43,202.33,202.26,0.68]
[1756647554262,0.43,202.33,202.25,0.03]
[1756647554263,5.37266508,202.32,202.25,0.03]
[1756647554685,5.37266508,202.32,202.25,0.71]
[1756647555665,4.94217653,202.34,202.25,0.71]
[1756647555967,44.12217653,202.34,202.25,0.71]
[1756647557483,4.94217653,202.34,202.25,5.65427999]
[1756647557659,4.94217653,202.34,202.26,0.68]
[1756647558685,4.94217653,202.34,202.26,5.62411086]
[1756647558888,4.94217653,202.34,202.27,0.68]
[1756647559667,4.94196452,202.35,202.27,0.68]
[1756647561382,4.94196452,202.35,202.28,4.94364247]
[1756647561558,4.94196452,202.35,202.29,0.68]
[1756647562175,5.43168848,202.36,202.29,0.68]
[1756647562370,0.49,202.36,202.29,0.68]
[1756647562578,0.06,202.36,202.29,0.68]
[1756647562787,0.06,202.35,202.29,0.68]
[1756647563390,0.06,202.35,202.3,4.94315373]
[1756647563584,0.06,202.35,202.31,0.68]
[1756647563960,0.00971431,202.35,202.31,0.68]
[1756647565271,0.00971431,202.35,202.32,4.94266508]
[1756647565773,0.00971431,202.35,202.33,0.68]
[1756647566370,0.00971431,202.35,202.31,0.68]
[1756647566586,0.00971431,202.35,202.33,0.68]
[1756647567083,0.00971431,202.35,202.34,0.68]
[1756647568080,0.00971431,202.35,202.3,0.68]
[1756647568588,0.00971431,202.35,202.31,0.68]
[1756647569702,0.00971431,202.35,202.32,4.94266508]
[1756647570067,0.00971431,202.35,202.33,0.68]
[1756647572180,0.00971431,202.35,202.33,5.62235731]
[1756647572675,0.00971431,202.35,202.34,0.69]
[1756647572880,0.00971431,202.35,202.3,0.69]
[1756647573176,0.43971431,202.35,202.3,0.69]
[1756647573970,0.00971431,202.35,202.28,0.69]
[1756647574304,4.94242079,202.33,202.28,0.69]
[1756647574486,5.37242079,202.33,202.28,0.69]
[1756647575273,0.00971431,202.35,202.26,39.75]
[1756647575512,0.43,202.33,202.26,39.75]
[1756647575704,0.43,202.33,202.26,39.06]
[1756647576025,0.43971431,202.35,202.27,0.69]
[1756647577411,4.94217653,202.34,202.27,0.69]
[1756647577802,5.37217653,202.34,202.27,0.69]
[1756647578316,4.94217653,202.34,202.27,5.6337688]
[1756647578494,4.94217653,202.34,202.28,0.69]
[1756647578690,0.00971431,202.35,202.28,0.69]
[1756647579094,4.95171091,202.35,202.28,0.69]
[1756647579515,0.00971431,202.35,202.28,5.63345219]
[1756647579708,0.00971431,202.35,202.29,0.69]
[1756647580615,0.00971431,202.35,202.3,4.94315373]
[1756647581115,0.00971431,202.35,202.31,0.69]
[1756647581506,0.00971431,202.35,202.32,0.69]
[1756647582620,0.00971431,202.35,202.33,0.69]
[1756647583410,0.00971431,202.35,202.28,4.97354746]
[1756647583618,0.00971431,202.35,202.29,0.69]
[1756647583804,0.00971431,202.35,202.29,5.63320588]
[1756647584005,0.00971431,202.35,202.3,0.69]
[1756647584627,0.00971431,202.35,202.28,0.03]
[1756647584818,0.00971431,202.35,202.31,0.69]
[1756647585631,4.9516466,202.35,202.31,0.69]
[1756647587512,4.9516466,202.35,202.29,0.69]
[1756647587513,5.3816466,202.35,202.29,0.69]
[1756647587908,4.9516466,202.35,202.29,0.69]
[1756647591219,0.43,202.34,202.28,0.03]
[1756647592001,0.43,202.34,202.28,0.72]
[1756647592308,39.59559401,202.32,202.25,0.03]
[1756647592623,26.0,202.27,202.25,0.03]
[1756647592826,0.43,202.26,202.25,0.03]
[1756647593402,5.37413131,202.26,202.25,0.03]
[1756647596607,42.45511618,202.26,202.15,0.69]
[1756647596916,0.43,202.25,202.15,0.69]
[1756647597222,17.3044596,202.26,202.15,0.69]
[1756647597223,4.94413131,202.26,202.15,0.69]
[1756647597916,4.946475,202.28,202.16,39.59559401]
[1756647598222,4.94290939,202.31,202.18,13.59559401]
[1756647598400,4.94290939,202.31,202.19,0.69]
[1756647598800,4.94266508,202.32,202.2,4.94559841]
[1756647599123,4.94266508,202.32,202.21,0.69]
[1756647599317,5.37266508,202.32,202.21,0.69]
[1756647600114,5.37266508,202.32,202.21,5.6351886]
[1756647600316,0.43,202.31,202.22,0.69]
[1756647600909,70.38238805,202.34,202.22,0.69]
[1756647601111,13.59559401,202.33,202.22,0.69]
[1756647601311,0.43,202.32,202.22,0.69]
[1756647601505,0.43,202.31,202.22,0.69]
[1756647601699,0.43,202.3,202.22,0.69]
[1756647602223,4.94266508,202.32,202.23,4.94486475]
[1756647602427,4.94266508,202.32,202.24,0.72]
[1756647603204,4.95168424,202.35,202.24,0.72]
[1756647603623,0.43,202.34,202.24,0.72]
[1756647603929,0.43,202.33,202.24,0.72]
[1756647604117,0.43,202.32,202.24,0.72]
[1756647604315,0.43971431,202.35,202.24,5.66455889]
[1756647604513,0.43971431,202.35,202.25,0.72]
[1756647604819,0.00971431,202.35,202.25,0.72]
[1756647605218,0.00971431,202.35,202.26,13.59559401]
[1756647605422,0.00971431,202.35,202.26,18.59731901]
[1756647605728,0.00971431,202.35,202.27,0.72]
[1756647605906,4.95165228,202.35,202.27,0.72]
[1756647606308,4.95165228,202.35,202.27,5.66368049]
[1756647606511,0.00971431,202.35,202.28,0.72]
[1756647608132,0.00971431,202.35,202.28,5.66342269]
[1756647608529,0.00971431,202.35,202.29,0.72]
[1756647609833,0.43,202.34,202.25,0.72]
[1756647610130,4.94217653,202.34,202.25,0.72]
[1756647610818,5.37217653,202.34,202.25,0.72]
[1756647611737,17.72761786,202.34,202.25,0.72]
[1756647614636,5.37217653,202.34,202.25,5.6642957]
[1756647614837,5.37217653,202.34,202.26,0.72]
[1756647615916,0.43,202.33,202.24,0.72]
[1756647616117,0.43,202.32,202.24,0.72]
[1756647616329,17.29761786,202.34,202.24,0.72]
[1756647616530,0.43,202.31,202.24,0.72]
[1756647617421,4.94315373,202.3,202.24,0.72]
[1756647620520,30.94294276,202.31,202.24,0.72]
[1756647621554,0.00971431,202.35,202.27,13.59559401]
[1756647622056,0.00971431,202.35,202.28,0.72]
[1756647622627,0.00971431,202.35,202.29,4.94339809]
[1756647623035,0.00971431,202.35,202.3,0.72]
[1756647623946,0.00971431,202.35,202.3,5.66314503]
[1756647624351,0.00971431,202.35,202.31,0.72]
[1756647624741,0.00971431,202.35,202.32,0.72]
[1756647625346,0.00971431,202.35,202.33,0.72]
[1756647627046,0.00971431,202.35,202.28,1.980933]
[1756647627047,0.00971431,202.35,202.34,26.72]
[1756647627357,0.00971431,202.35,202.34,42.29603701]
[1756647628128,0.00971431,202.35,202.34,47.23821354]
[1756647631827,0.06,202.36,202.34,47.23821354]
[1756647631828,0.06,202.36,202.34,47.73243119]
[1756647632140,0.06,202.36,202.35,0.72]
[1756647634434,0.06,202.36,202.35,5.66193229]
[1756647634950,0.06,202.36,202.35,19.2575263]
[1756647635659,0.06,202.36,202.35,58.4575263]
[1756647635845,0.06,202.36,202.35,52.79559401]
[1756647636047,0.06,202.36,202.35,0.72]
[1756647636266,0.06,202.36,202.34,39.2]
[1756647637061,0.06,202.36,202.32,14.31559401]
[1756647637062,0.06,202.36,202.32,39.92]
[1756647637358,0.06,202.36,202.32,44.14265156]